[Event "DPEM German Cup 2022"]
[Site "Magdeburg"]
[Date "2022.08.19"]
[Round "4.1"]
[White "Woelk, Tom-Frederic"]
[Black "Ehmann, Thilo"]
[Result "0-1"]
[ECO "B97"]
[WhiteElo "2314"]
[BlackElo "2391"]
[Annotator "TA"]
[PlyCount "50"]
[EventDate "2022.08.10"]
[EventType "k.o."]
[EventCountry "GER"]
[SourceTitle "playchess.com"]
[Source "ChessBase"]
[SourceQuality "1"]
[TimeControl "40/5400+30:900+30"]

{[%evp 19,50,0,19,-8,5,-13,-20,-173,-229,-262,-270,-272,-265,-459,-419,-494,-506,-498,-440,-546,-515,-514,-507,-778,-771,-804,-683,-685,-680,-686,-677,-644,-621]} 1. e4 {[%emt 0:01:31]} c5 {[%emt 0:00:30]} 2. Nf3 {[%emt 0:00:05]} d6 {[%emt 0:00:05]} 3. d4 {[%emt 0:00:07]} cxd4 {[%emt 0:00:03]} 4. Nxd4 {[%emt 0:00:05]} Nf6 {[%emt 0:00:02]} 5. Nc3 {[%emt 0:00:06]} a6 {[%emt 0:00:03]} 6. Bg5 {[%emt 0:00:13]} e6 {[%emt 0:00:39]} 7. f4 {[%emt 0:01:09]} Qb6 {[%emt 0:00:16]} 8. Qd2 {[%emt 0:08:31]} Qxb2 {[%emt 0:00:23]} 9. Rb1 {[%emt 0:00:02][%cal Ba1b1,Bb1b3,Bb3c3][%mdl 32]} Qa3 {[%emt 0:00:05]} 10. f5 {[%emt 0:00:03] outshines the older 10.e5.} b5 {[%emt 0:02:09]} 11. Rb3 {[%emt 0:12:14] B97: Sicilian Najdorf: Poisoned Pawn.} Qc5 {[%emt 0:06:04]} 12. Bxf6 {[%emt 0:01:08]} gxf6 {[%emt 0:00:22]} 13. Ncxb5 $2 {[%emt 0:17:39]} axb5 $19 {[%emt 0:04:34] [#]} 14. Rc3 $146 {[%emt 0:09:45] [#]} ({Predecessor:} 14. Bxb5+ Ke7 15. fxe6 fxe6 16. O-O Bg7 17. Rc3 Qa7 18. Rg3 Kf8 19. Kh1 Qe7 20. Qg5 {½-½ (32) Estrin,Y-Sorensen,H ICCF corr 1978}) 14... Bh6 $1 {[%emt 0:00:30][%mdl 512]} 15. Qd3 {[%emt 0:03:51]} (15. Bxb5+ Ke7) 15... Qb4 {[%emt 0:00:33]} 16. Kf2 $2 {[%emt 0:01:58]} (16. Qxb5+ Qxb5 17. Bxb5+ Ke7 18. fxe6 fxe6 19. a4) 16... Bd7 {[%emt 0:07:34]} 17. fxe6 {[%emt 0:12:22]} fxe6 {[%emt 0:01:24] Black is clearly winning.} 18. Be2 {[%emt 0:00:11]} Bf4 {[%emt 0:08:51]} 19. Bh5+ {[%emt 0:03:38]} Kd8 {[%emt 0:02:57]} 20. a3 {[%emt 0:02:42]} Qa5 {[%emt 0:01:04]} 21. Bg4 {[%emt 0:03:46]} (21. g3 $142 Be5 22. Rd1) 21... Qb6 {[%emt 0:07:25]} 22. Kf3 {[%emt 0:03:22]} Be5 {[%emt 0:00:57]} 23. Nxe6+ {[%emt 0:02:40]} Bxe6 {[%emt 0:00:18]} 24. Bxe6 {[%emt 0:00:04] [#] Rc8+ is the strong threat.} Bxc3 {[%emt 0:00:13]} 25. Qxc3 {[%emt 0:00:04]} Nd7 {[%emt 0:00:14] White did not feel at home in the position after the opening.  Weighted Error Value: White=0.83/Black=0.27 (precise)} 0-1

[Event "DPEM German Cup 2022"]
[Site "Magdeburg"]
[Date "2022.08.19"]
[Round "4.2"]
[White "Mueer, Sebastian"]
[Black "Malinowsky, Levi"]
[Result "1-0"]
[ECO "E90"]
[WhiteElo "2161"]
[BlackElo "1814"]
[Annotator "TA"]
[PlyCount "111"]
[EventDate "2022.08.10"]
[EventType "k.o."]
[EventCountry "GER"]
[SourceTitle "playchess.com"]
[Source "ChessBase"]
[SourceQuality "1"]
[TimeControl "40/5400+30:900+30"]

{[%evp 13,110,32,58,60,82,0,58,47,72,63,81,66,76,63,67,72,65,70,68,33,38,0,44,17,51,46,54,45,51,39,50,26,32,21,43,30,39,43,60,62,49,62,50,47,70,62,98,87,175,179,166,155,389,252,521,429,408,412,387,417,456,535,504,500,481,494,836,808,860,846,839,837,841,854,819,807,897,896,925,864,857,780,1452,1238,29988,29989,29989,29990,29990,29989,29994,29995,29996,29997,29997,29998,29998,29999,29999]} 1. d4 {[%emt 0:05:54]} Nf6 {[%emt 0:00:12]} 2. Nf3 {[%emt 0:00:17]} g6 {[%emt 0:00:33]} 3. c4 {[%emt 0:00:20]} Bg7 {[%emt 0:00:30]} 4. Nc3 {[%emt 0:00:09]} O-O {[%emt 0:02:02]} 5. e4 {[%emt 0:00:09]} d6 {[%emt 0:00:27]} 6. h3 {[%emt 0:00:13]} Nbd7 {[%emt 0:00:55]} 7. Be3 {[%emt 0:00:16] 7.Bg5 is the fancy move.} c5 {[%emt 0:02:23]} 8. d5 {[%emt 0:02:02] E90: King's Indian: Classical: Early deviations and 6 h3.} Qa5 {[%emt 0:01:15] ...Nxe4 is the strong threat.} 9. Bd3 {[%emt 0:08:08]} ({White should play} 9. Nd2 $16) 9... a6 {[%emt 0:02:35]} (9... Nxe4 $11 10. Bxe4 Bxc3+ 11. bxc3 Qxc3+ 12. Bd2 Qxc4) 10. Bd2 {[%emt 0:03:14] White is slightly better.} Qd8 {[%emt 0:06:32]} 11. O-O {[%emt 0:01:58]} Rb8 {[%emt 0:01:50]} 12. Qc2 {[%emt 0:03:42]} Ne8 {[%emt 0:03:17] [#]} 13. Rfe1 $146 {[%emt 0:06:51]} ({Predecessor:} 13. Bg5 Ne5 14. Nxe5 dxe5 15. Be3 Qc7 16. a3 Nd6 17. Na4 b6 18. b4 Nb7 19. Rab1 {½-½ (39) Franco Alonso,A (2425)-Arribas Lopez,A (2292) Parla 2007}) 13... Nc7 {[%emt 0:03:01]} 14. a4 {[%emt 0:00:19]} b6 {[%emt 0:02:28]} 15. Bf4 {[%emt 0:00:51]} f6 {[%emt 0:04:43]} 16. Bg3 {[%emt 0:07:22] 0x0.0013bc3f9a96dp-1022s more active pieces.} Ne5 {[%emt 0:02:37]} 17. Be2 {[%emt 0:04:10]} Bd7 {[%emt 0:02:00]} 18. Nd2 {[%emt 0:01:35]} Nf7 {[%emt 0:05:31]} (18... f5 {seems wilder.} 19. exf5 Bxf5 20. Nde4 e6) 19. Bd3 {[%emt 0:07:40]} b5 {[%emt 0:06:27]} 20. axb5 {[%emt 0:01:36]} axb5 {[%emt 0:00:10]} 21. f4 {[%emt 0:01:59]} Qc8 {[%emt 0:03:52]} 22. Nf3 {[%emt 0:04:07]} bxc4 {[%emt 0:03:45]} 23. Bxc4 {[%emt 0:02:33]} Qb7 {[%emt 0:04:49]} 24. b3 {[%emt 0:01:55]} Qb4 {[%emt 0:02:53]} 25. Ra7 {[%emt 0:04:58]} Rb7 {[%emt 0:03:15]} 26. Rxb7 {[%emt 0:00:35]} Qxb7 {[%emt 0:00:05]} 27. e5 {[%emt 0:02:18]} fxe5 {[%emt 0:00:53]} 28. fxe5 {[%emt 0:00:08] Hoping for e6.} Bf5 {[%emt 0:01:06]} 29. Qe2 {[%emt 0:01:17]} Re8 {[%emt 0:04:54]} 30. Kh2 {[%emt 0:10:57]} Qb4 {[%emt 0:03:11] [#]} (30... Rf8 $16) 31. Ne4 $1 $18 {[%emt 0:07:31]} Bxe4 {[%emt 0:00:11]} 32. Qxe4 {[%emt 0:00:02]} Qc3 $2 {[%emt 0:01:17] A mistake that costs the game.} (32... Qb8 $16 33. Qg4 Qc8) 33. Re3 {[%emt 0:01:04]} Qb2 {[%emt 0:00:48]} (33... Qa1 34. Qh4 Qb1 35. exd6 exd6 36. Rxe8+ Nxe8) 34. Re2 {[%emt 0:00:06]} Qa1 {[%emt 0:01:02]} 35. Qg4 {[%emt 0:01:05]} Qa8 {[%emt 0:04:57]} 36. Ng5 {[%emt 0:01:17]} Nh6 {[%emt 0:05:41]} 37. Qd7 {[%emt 0:00:40]} Qd8 {[%emt 0:07:21]} 38. Qc6 {[%emt 0:01:49]} Nf5 {[%emt 0:01:24]} 39. exd6 {[%emt 0:00:47]} exd6 {[%emt 0:00:23] [#]} (39... Nxd6 $142 40. Ne4 (40. Qxc5 Rf8 $18) 40... h5 41. Nxc5 (41. Bxd6 exd6 42. g3 Be5 $11) 41... h4) 40. Qxc7 $3 {[%emt 0:02:45][%mdl 512]} Rf8 {[%emt 0:03:55] Prevents Qf7+.} 41. Qxd8 {[%emt 0:01:33]} Rxd8 {[%emt 0:00:07]} 42. Ne6 {[%emt 0:00:05]} Rd7 {[%emt 0:00:23]} 43. Nxg7 {[%emt 0:00:18]} Kxg7 {[%emt 0:00:08]} 44. Re6 {[%emt 0:00:21]} h5 {[%emt 0:00:42]} 45. Bf4 {[%emt 0:00:22]} h4 {[%emt 0:00:15]} 46. Bd3 {[%emt 0:00:07]} Ne7 {[%emt 0:00:16]} 47. Be4 {[%emt 0:01:16]} Kf7 {[%emt 0:00:09]} 48. Bxd6 {[%emt 0:00:34]} Ng8 {[%emt 0:00:09]} 49. Bxg6+ {[%emt 0:00:46] White mates.} Kg7 {[%emt 0:00:07]} 50. Be5+ {[%emt 0:00:15]} Nf6 {[%emt 0:00:06]} 51. Rxf6 {[%emt 0:00:21]} Kg8 {[%emt 0:00:36]} 52. Rc6 {[%emt 0:00:48]} Rd8 {[%emt 0:00:11]} 53. Rc7 {[%emt 0:00:52]} Ra8 {[%emt 0:00:44]} 54. Rh7 {[%emt 0:00:57][%csl Ge5][%cal Rh7h8]} Kf8 {[%emt 0:00:10]} 55. Bf6 {[%emt 0:00:18][%cal Rh7h8]} Ra7 {[%emt 0:00:21]} 56. Rh8# {[%emt 0:00:07] Weighted Error Value: White=0.14 (very precise) /Black=0.56} 1-0

[Event "DPEM German Cup 2022"]
[Site "Magdeburg"]
[Date "2022.08.19"]
[Round "4.3"]
[White "Uphoff, Lennart"]
[Black "Heinrich, Julius Tobias"]
[Result "1-0"]
[ECO "D35"]
[WhiteElo "2173"]
[BlackElo "2074"]
[Annotator "TA"]
[PlyCount "71"]
[EventDate "2022.08.10"]
[EventType "k.o."]
[EventCountry "GER"]
[SourceTitle "playchess.com"]
[Source "ChessBase"]
[SourceQuality "1"]
[TimeControl "40/5400+30:900+30"]

{[%evp 12,71,25,25,44,31,66,54,63,54,74,54,56,61,68,36,70,66,77,33,64,56,66,64,66,54,96,53,74,55,56,46,70,54,77,55,63,63,56,50,133,115,128,119,294,286,294,296,404,390,404,387,560,546,1449,1256,1797,1690,29989,29990,29996,29991]} 1. d4 {[%emt 0:00:03]} d5 {[%emt 0:00:08]} 2. c4 {[%emt 0:00:03]} e6 {[%emt 0:00:06]} 3. Nc3 {[%emt 0:00:04]} Nf6 {[%emt 0:00:04]} 4. cxd5 {[%emt 0:00:04]} exd5 {[%emt 0:00:03]} 5. Bg5 {[%emt 0:00:07]} Be7 {[%emt 0:00:05]} 6. e3 {[%emt 0:00:04]} Nbd7 {[%emt 0:00:11]} 7. Bd3 {[%emt 0:00:18]} a6 {[%emt 0:00:11] D35: Queen's Gambit Declined: Exchange Variation.} 8. Nge2 {[%emt 0:04:15]} c5 {[%emt 0:01:00]} 9. dxc5 {[%emt 0:11:34]} Nxc5 {[%emt 0:01:19] White is slightly better.} 10. O-O {[%emt 0:01:49]} Be6 {[%emt 0:07:44] [#]} 11. Nd4 $146 {[%emt 0:04:05]} ({Predecessor:} 11. Nf4 Qa5 12. Bc2 Ncd7 13. Bb3 Rd8 14. Nce2 O-O 15. Nd4 Nc5 16. Bc2 Rfe8 17. Qb1 {1-0 (32) Wahlbom,M (2283)-Savolainen,L (2083) Katerini 2014}) 11... h6 {[%emt 0:05:42]} 12. Bh4 {[%emt 0:02:59][%cal Bg5h4,Bh4g3,Bg3e5][%mdl 32]} O-O {[%emt 0:07:53]} 13. Nf5 {[%emt 0:03:37] White is more active.} Qd7 {[%emt 0:01:53]} 14. Nxe7+ {[%emt 0:07:40]} Qxe7 {[%emt 0:00:23]} 15. Be2 {[%emt 0:03:20]} Rad8 {[%emt 0:12:11]} 16. Qd4 {[%emt 0:05:29]} g5 {[%emt 0:02:30]} 17. Bg3 {[%emt 0:00:19][%cal Og3c7]} Nfe4 {[%emt 0:03:02]} 18. Rac1 {[%emt 0:02:45]} Rd7 {[%emt 0:09:44]} 19. Nxe4 {[%emt 0:09:26]} Nxe4 {[%emt 0:00:10]} 20. Be5 {[%emt 0:00:59]} f6 {[%emt 0:02:20]} 21. Bg3 {[%emt 0:00:33]} Qf7 {[%emt 0:09:31]} 22. Bd1 {[%emt 0:05:36]} h5 {[%emt 0:09:18]} 23. f3 {[%emt 0:02:25]} Nxg3 {[%emt 0:04:49]} 24. hxg3 {[%emt 0:00:06]} f5 {[%emt 0:09:42]} 25. Bb3 {[%emt 0:02:04]} f4 {[%emt 0:01:21]} (25... Qg7 $14) 26. gxf4 {[%emt 0:01:03]} gxf4 {[%emt 0:00:22]} 27. Rfe1 {[%emt 0:01:04]} Qg6 $2 {[%emt 0:04:41] Black cannot hold the game after this.} (27... Qf6 $16 {is a better defense.}) 28. exf4 $18 {[%emt 0:02:22]} Rg7 {[%emt 0:04:29][%csl Gg7][%cal Rg6g2] [#]} 29. Rc2 {[%emt 0:00:40][%cal Oe1e6,Bc1c2,Bc2e2,Be2e5][%mdl 32] Strongly threatening Rxe6!} Kh7 {[%emt 0:01:22]} 30. Re5 {[%emt 0:02:45]} Bf5 {[%emt 0:01:40]} 31. Rce2 {[%emt 0:01:10] aiming for g4.} Rc8 {[%emt 0:00:46]} (31... Qf6 $142 32. g4 Bg6) 32. Qd2 {[%emt 0:02:00]} Bd3 {[%emt 0:01:03]} 33. Re6 {[%emt 0:05:19]} Qf5 {[%emt 0:00:35]} 34. R2e5 {[%emt 0:00:25]} Qh3 {[%emt 0:00:38]} 35. Qxd3+ {[%emt 0:00:15]} Kh8 {[%emt 0:00:04]} 36. Re8+ {[%emt 0:00:41] Weighted Error Value: White=0.08 (flawless) /Black=0.66} 1-0

[Event "DPEM German Cup 2022"]
[Site "Magdeburg"]
[Date "2022.08.19"]
[Round "4.4"]
[White "Puerckhauer, Soeren"]
[Black "Noetzel, Felix"]
[Result "1/2-1/2"]
[ECO "D02"]
[WhiteElo "2158"]
[BlackElo "2124"]
[Annotator "TA"]
[PlyCount "94"]
[EventDate "2022.08.10"]
[EventType "k.o."]
[EventCountry "GER"]
[SourceTitle "playchess.com"]
[Source "ChessBase"]
[SourceQuality "1"]
[TimeControl "40/5400+30:900+30"]

{[%evp 13,94,-3,0,-10,0,-3,0,-16,-8,-19,-12,-10,-1,-18,-11,-17,-18,-17,-4,-6,-13,-9,0,0,0,0,-6,-8,14,0,14,7,27,10,16,21,27,11,19,7,14,14,16,20,44,0,0,0,0,0,0,0,0,0,0,0,0,0,0,0,0,0,0,0,6,0,0,0,8,8,8,8,8,8,8,8,10,10,17,17,20,20,20]} 1. d4 {[%emt 0:00:01]} d5 {[%emt 0:00:06]} 2. Nf3 {[%emt 0:00:04]} Nf6 {[%emt 0:00:07]} 3. Bf4 {[%emt 0:00:17]} g6 {[%emt 0:00:15]} 4. c3 {[%emt 0:00:18]} Bg7 {[%emt 0:00:18]} 5. e3 {[%emt 0:00:06]} O-O {[%emt 0:00:27]} 6. Bd3 {[%emt 0:00:07]} c5 {[%emt 0:01:08]} 7. Nbd2 {[%emt 0:00:30]} Nc6 {[%emt 0:00:55]} 8. O-O {[%emt 0:00:41] D02: 1 d4 d5 2 Nf3 sidelines, including 2...Nf6 3 g3 and 2...Nf6 3 Bf4.} Nd7 {[%emt 0:04:24]} 9. Bc2 {[%emt 0:20:48]} e5 {[%emt 0:04:41]} 10. dxe5 {[%emt 0:00:09]} Ndxe5 {[%emt 0:00:06]} 11. Nxe5 {[%emt 0:00:21]} Nxe5 {[%emt 0:00:06]} 12. h3 {[%emt 0:02:30]} Be6 {[%emt 0:06:13] [#]} 13. e4 $146 {[%emt 0:09:50]} ({Predecessor:} 13. a4 Rc8 14. a5 a6 15. Re1 h6 16. Bg3 Nc6 17. Nb3 Qe7 18. Ra4 Rfd8 19. Bh4 {0-1 (43) Aryan,C (2585)-Adhiban,B (2648) chess24.com INT 2022}) 13... d4 {[%emt 0:10:01]} 14. Bxe5 {[%emt 0:00:18]} Bxe5 {[%emt 0:00:04]} 15. Nf3 {[%emt 0:00:11]} Bg7 {[%emt 0:01:24]} 16. cxd4 {[%emt 0:00:05]} cxd4 {[%emt 0:16:19]} 17. Bd3 {[%emt 0:00:26]} Qa5 {[%emt 0:03:03]} 18. Qd2 {[%emt 0:01:08]} Qxd2 {[%emt 0:05:43]} 19. Nxd2 {[%emt 0:00:02]} Rac8 {[%emt 0:00:08]} 20. f4 {[%emt 0:02:04]} a6 {[%emt 0:10:25]} 21. Kf2 {[%emt 0:09:32]} b5 {[%emt 0:09:42]} 22. Ke2 {[%emt 0:01:43]} Rfd8 {[%emt 0:00:41]} 23. Rfc1 {[%emt 0:06:20]} Bh6 {[%emt 0:02:38][%cal Bg7h6,Bh6f8,Bf8d6][%mdl 32]} 24. Kf3 {[%emt 0:00:16]} Bf8 {[%emt 0:01:07]} 25. a3 {[%emt 0:00:27]} f6 {[%emt 0:03:07]} 26. g4 {[%emt 0:00:24]} Bd6 {[%emt 0:02:44]} 27. Rxc8 {[%emt 0:07:26]} Rxc8 {[%emt 0:00:20]} 28. a4 {[%emt 0:02:50]} Bb4 {[%emt 0:02:29] This bishop pair is nice.} 29. Ke2 {[%emt 0:01:30]} (29. axb5 $5 axb5 30. f5 $11) 29... bxa4 {[%emt 0:07:36] The position is equal.} 30. Rxa4 {[%emt 0:00:03]} a5 {[%emt 0:00:07]} 31. Ra1 {[%emt 0:00:51] Against Rc1} Rb8 {[%emt 0:06:18]} 32. Nf3 {[%emt 0:07:41]} Bc5 {[%emt 0:00:23]} 33. Rxa5 {[%emt 0:00:15]} Rxb2+ {[%emt 0:00:08]} 34. Kf1 {[%emt 0:00:28]} Bb6 {[%emt 0:02:33]} 35. Rb5 {[%emt 0:00:20]} Rxb5 {[%emt 0:00:05]} 36. Bxb5 $11 {[%emt 0:00:02][%mdl 4096] Endgame KBB-KBN} Bb3 {[%emt 0:01:42]} 37. Ke2 {[%emt 0:01:28]} Bc2 {[%emt 0:00:11]} 38. Bd3 {[%emt 0:00:01]} Bb3 {[%emt 0:00:06]} 39. Nd2 {[%emt 0:00:13]} Ba4 {[%emt 0:01:06]} 40. Bc4+ {[%emt 0:00:17]} Kg7 {[%emt 0:00:32]} 41. Kd3 {[%emt 0:15:20]} Bc7 {[%emt 0:08:50]} 42. f5 {[%emt 0:00:00]} h5 {[%emt 0:02:02]} 43. Nf3 {[%emt 0:00:00]} hxg4 {[%emt 0:00:49]} 44. hxg4 {[%emt 0:00:00]} ({Don't blunder} 44. Nxd4 $2 gxh3 45. Nf3 (45. Ne6+ $2 Kh6 $19) 45... g5 $19) 44... gxf5 {[%emt 0:00:45]} 45. gxf5 {[%emt 0:00:00]} Be5 {[%emt 0:01:30]} 46. Nxd4 {[%emt 0:00:00]} Bxd4 {[%emt 0:00:03]} 47. Kxd4 {[%emt 0:00:00]} Kf8 {[%emt 0:00:04] A balanced but interesting game.  Weighted Error Value: White=0.03 (flawless) /Black=0.04 (flawless)} 1/2-1/2

[Event "DPEM German Cup 2022"]
[Site "Magdeburg"]
[Date "2022.08.19"]
[Round "4.5"]
[White "Tiarks, Jann-Christian"]
[Black "Brunke, Pascal"]
[Result "1-0"]
[ECO "C11"]
[WhiteElo "2196"]
[BlackElo "2022"]
[Annotator "NA RC"]
[PlyCount "48"]
[EventDate "2022.08.10"]
[EventType "k.o."]
[EventCountry "GER"]
[SourceTitle "playchess.com"]
[Source "ChessBase"]
[SourceQuality "1"]
[TimeControl "40/5400+30:900+30"]

1. e4 {[%emt 0:02:11]} e6 {[%emt 0:00:05]} 2. d4 {[%emt 0:00:30]} d5 {[%emt 0:00:08]} 3. Nc3 {[%emt 0:02:52]} Nf6 {[%emt 0:00:06]} 4. e5 {[%emt 0:00:10]} Nfd7 {[%emt 0:00:04]} 5. Nce2 {[%emt 0:00:03]} c5 {[%emt 0:01:04]} 6. c3 {[%emt 0:00:06]} Nc6 {[%emt 0:00:10]} 7. Nf3 {[%emt 0:00:06]} f6 {[%emt 0:03:06]} 8. Nf4 {[%emt 0:05:25]} Qe7 {[%emt 0:03:26]} 9. exf6 {[%emt 0:14:28]} Nxf6 {[%emt 0:01:23]} 10. Bd3 {[%emt 0:16:46]} Bd7 {[%emt 0:10:29]} 11. O-O {[%emt 0:01:26]} O-O-O {[%emt 0:00:20]} 12. Re1 {[%emt 0:00:59]} cxd4 {[%emt 0:18:07]} 13. cxd4 {[%emt 0:00:22]} Ne4 {[%emt 0:00:27]} 14. Bxe4 {[%emt 0:03:02]} dxe4 {[%emt 0:00:19]} 15. Rxe4 {[%emt 0:00:08]} g5 {[%emt 0:01:11]} 16. Nxe6 {[%emt 0:15:22]} Bxe6 {[%emt 0:01:53]} 17. Bxg5 {[%emt 0:04:00]} Qd6 {[%emt 0:05:51]} 18. Bxd8 {[%emt 0:01:17]} Kxd8 {[%emt 0:00:11]} 19. Rxe6 {[%emt 0:00:50]} Qxe6 {[%emt 0:00:15]} 20. d5 {[%emt 0:00:04]} Qd6 {[%emt 0:01:51]} 21. dxc6 {[%emt 0:00:10]} bxc6 {[%emt 0:00:04]} 22. Qa4 {[%emt 0:00:40]} Qc5 {[%emt 0:01:34]} 23. Rd1+ {[%emt 0:00:28]} Bd6 {[%emt 0:01:55]} 24. b4 {[%emt 0:00:09]} Ke8 {[%emt 0:00:48]} 1-0

[Event "DPEM German Cup 2022"]
[Site "Magdeburg"]
[Date "2022.08.19"]
[Round "4.6"]
[White "Foerster, Erik"]
[Black "Schroeder, Christoph"]
[Result "1-0"]
[ECO "E05"]
[WhiteElo "2109"]
[BlackElo "2141"]
[Annotator "NA RC"]
[PlyCount "87"]
[EventDate "2022.08.10"]
[EventType "k.o."]
[EventCountry "GER"]
[SourceTitle "playchess.com"]
[Source "ChessBase"]
[SourceQuality "1"]
[TimeControl "40/5400+30:900+30"]

1. d4 {[%emt 0:00:03]} d5 {[%emt 0:00:14]} 2. Nf3 {[%emt 0:00:03]} Nf6 {[%emt 0:00:14]} 3. g3 {[%emt 0:00:08]} e6 {[%emt 0:00:42]} 4. Bg2 {[%emt 0:00:02]} Be7 {[%emt 0:00:10]} 5. O-O {[%emt 0:00:04]} O-O {[%emt 0:00:13]} 6. c4 {[%emt 0:00:03]} dxc4 {[%emt 0:01:08]} 7. Qc2 {[%emt 0:00:02]} a6 {[%emt 0:01:03]} 8. a4 {[%emt 0:00:02]} Bd7 {[%emt 0:00:22]} 9. Rd1 {[%emt 0:00:03]} Bc6 {[%emt 0:02:13]} 10. Nc3 {[%emt 0:00:02]} a5 {[%emt 0:04:38]} 11. e4 {[%emt 0:00:40]} Na6 {[%emt 0:01:06]} 12. Ne5 {[%emt 0:01:18]} Nb4 {[%emt 0:03:40]} 13. Qe2 {[%emt 0:00:04]} Re8 {[%emt 0:13:32]} 14. Bf4 {[%emt 0:02:43]} Nd7 {[%emt 0:05:46]} 15. Nxc4 {[%emt 0:08:58]} Bg5 {[%emt 0:04:26]} 16. Bxg5 {[%emt 0:06:24]} Qxg5 {[%emt 0:00:17]} 17. f4 {[%emt 0:00:29]} Qe7 {[%emt 0:02:17]} 18. Qf2 {[%emt 0:00:38]} Nf6 {[%emt 0:03:49]} 19. Ne5 {[%emt 0:01:51]} Rad8 {[%emt 0:02:09]} 20. Rac1 {[%emt 0:01:11]} Nd7 {[%emt 0:02:00]} 21. Nxc6 {[%emt 0:02:33]} bxc6 {[%emt 0:05:16]} 22. Nb1 {[%emt 0:06:12]} Ra8 {[%emt 0:05:38]} 23. Na3 {[%emt 0:02:11]} Ra6 {[%emt 0:00:50]} 24. Nc4 {[%emt 0:00:55]} Nb6 {[%emt 0:00:56]} 25. b3 {[%emt 0:00:24]} Nxc4 {[%emt 0:02:00]} 26. Rxc4 {[%emt 0:00:21]} Rb6 {[%emt 0:00:37]} 27. Rc5 {[%emt 0:03:06]} Ra8 {[%emt 0:00:10]} 28. Bf1 {[%emt 0:03:39]} Rbb8 {[%emt 0:03:52]} 29. Bc4 {[%emt 0:00:47]} Rd8 {[%emt 0:00:15]} 30. Rf1 {[%emt 0:01:05]} Qd6 {[%emt 0:01:24]} 31. f5 {[%emt 0:02:00]} Qxd4 {[%emt 0:02:55]} 32. Qxd4 {[%emt 0:01:09]} Rxd4 {[%emt 0:00:05]} 33. fxe6 {[%emt 0:00:14]} fxe6 {[%emt 0:08:10]} 34. Bxe6+ {[%emt 0:00:15]} Kh8 {[%emt 0:00:04]} 35. Rxa5 {[%emt 0:01:00]} Rad8 {[%emt 0:04:56]} 36. Raf5 {[%emt 0:01:17]} g6 {[%emt 0:00:54]} 37. Rf8+ {[%emt 0:01:01]} Rxf8 {[%emt 0:00:17]} 38. Rxf8+ {[%emt 0:00:02]} Kg7 {[%emt 0:00:12]} 39. Rf7+ {[%emt 0:04:12]} Kh8 {[%emt 0:06:20]} 40. Rxc7 {[%emt 0:00:46]} Rxe4 {[%emt 0:00:11]} 41. Bc4 {[%emt 0:15:45]} h5 {[%emt 0:22:14]} 42. Kf2 {[%emt 0:01:11]} h4 {[%emt 0:00:35]} 43. a5 {[%emt 0:00:28]} hxg3+ {[%emt 0:01:22]} 44. hxg3 {[%emt 0:00:02]} 1-0